[Event "Championnat d'Europe Rapide"]
[Date "2024.12.08"]
[White "Alonso Rosell, Alvar"]
[Black "Maltsevskaya, Aleksandra"]
[WhiteElo "2532"]
[BlackElo "2368"]
[Round "9.39"]
[Result "1-0"]
[TimeControl "900+10"]

1. d4 {[%emt 00:00:02] [%clk 00:15:18]} Nf6 {[%emt 00:00:02] [%clk 00:15:18]} 2.
Nf3 {[%emt 00:00:02] [%clk 00:15:26]} g6 {[%emt 00:00:02] [%clk 00:15:27]} 3. g3
{[%emt 00:00:08] [%clk 00:15:27]} Bg7 {[%emt 00:00:02] [%clk 00:15:35]} 4. Bg2
{[%emt 00:00:01] [%clk 00:15:36]} O-O {[%emt 00:00:03] [%clk 00:15:42]} 5. c4
{[%emt 00:00:02] [%clk 00:15:44]} d6 {[%emt 00:00:03] [%clk 00:15:49]} 6. Nc3
{[%emt 00:00:02] [%clk 00:15:52]} Nbd7 {[%emt 00:00:02] [%clk 00:15:56]} 7. O-O
{[%emt 00:00:03] [%clk 00:16:00]} e5 {[%emt 00:00:02] [%clk 00:16:05]} 8. Qc2
{[%emt 00:00:01] [%clk 00:16:08]} Re8 {[%emt 00:00:18] [%clk 00:15:56]} 9. Rd1
{[%emt 00:00:06] [%clk 00:16:12]} c6 {[%emt 00:00:18] [%clk 00:15:48]} 10. e4
{[%emt 00:00:03] [%clk 00:16:19]} h6 {[%emt 00:00:14] [%clk 00:15:45]} 11. h3
{[%emt 00:00:26] [%clk 00:16:02]} Qe7 {[%emt 00:00:26] [%clk 00:15:30]} 12. Be3
{[%emt 00:02:19] [%clk 00:13:52]} Kh7 {[%emt 00:00:08] [%clk 00:15:32]} 13. Re1
{[%emt 00:00:52] [%clk 00:13:10]} Nf8 {[%emt 00:00:44] [%clk 00:14:57]} 14. Rad1
{[%emt 00:00:45] [%clk 00:12:36]} Qc7 {[%emt 00:00:25] [%clk 00:14:41]} 15. Qd2
{[%emt 00:01:49] [%clk 00:10:58]} Ne6 {[%emt 00:00:22] [%clk 00:14:29]} 16. d5
{[%emt 00:02:06] [%clk 00:09:02]} cxd5 {[%emt 00:00:02] [%clk 00:14:37]} 17.
exd5 {[%emt 00:00:44] [%clk 00:08:28]} e4 {[%emt 00:01:23] [%clk 00:13:24]} 18.
Nb5 {[%emt 00:01:15] [%clk 00:07:22]} Qd8 {[%emt 00:02:15] [%clk 00:11:19]} 19.
dxe6 {[%emt 00:00:16] [%clk 00:07:16]} exf3 {[%emt 00:00:02] [%clk 00:11:27]}
20. exf7 {[%emt 00:00:02] [%clk 00:07:24]} Rxe3 {[%emt 00:03:07] [%clk
00:08:30]} 21. Rxe3 {[%emt 00:00:26] [%clk 00:07:07]} fxg2 {[%emt 00:00:03]
[%clk 00:08:37]} 22. Nxd6 {[%emt 00:00:12] [%clk 00:07:06]} Bxh3 {[%emt
00:00:51] [%clk 00:07:55]} 23. Re8 {[%emt 00:00:48] [%clk 00:06:27]} Qd7 {[%emt
00:02:10] [%clk 00:05:56]} 24. Rxa8 {[%emt 00:00:08] [%clk 00:06:30]} Bg4 {[%emt
00:00:01] [%clk 00:06:04]} 25. f8=Q {[%emt 00:00:21] [%clk 00:06:18]} Bxd1
{[%emt 00:00:32] [%clk 00:05:43]} 26. Ne4 {[%emt 00:00:34] [%clk 00:05:54]} Qxd2
{[%emt 00:00:29] [%clk 00:05:24]} 27. Nxf6+ {[%emt 00:00:03] [%clk 00:06:01]}
1-0

[Site "Europe Echecs"]

[Event "Championnat d'Europe Rapide"]
[Date "2024.12.08"]
[White "Todorovic, Goran N"]
[Black "Guliyev, Namig"]
[WhiteElo "2256"]
[BlackElo "2484"]
[Round "9.40"]
[Result "0-1"]
[TimeControl "900+10"]

1. Nf3 {[%emt 00:00:01] [%clk 00:15:18]} d5 {[%emt 00:00:02] [%clk 00:15:19]} 2.
c4 {[%emt 00:00:02] [%clk 00:15:26]} d4 {[%emt 00:00:02] [%clk 00:15:27]} 3. b4
{[%emt 00:00:02] [%clk 00:15:34]} f6 {[%emt 00:00:27] [%clk 00:15:11]} 4. Na3
{[%emt 00:00:01] [%clk 00:15:43]} e5 {[%emt 00:00:02] [%clk 00:15:19]} 5. Nc2
{[%clk 00:15:51]} c5 {[%emt 00:00:07] [%clk 00:15:23]} 6. bxc5 {[%emt 00:00:02]
[%clk 00:16:00]} Nc6 {[%emt 00:00:15] [%clk 00:15:18]} 7. d3 {[%emt 00:00:02]
[%clk 00:16:08]} Bxc5 {[%emt 00:00:07] [%clk 00:15:21]} 8. g3 {[%clk 00:16:16]}
Nge7 {[%emt 00:00:07] [%clk 00:15:25]} 9. Bg2 {[%emt 00:00:01] [%clk 00:16:25]}
O-O {[%emt 00:00:29] [%clk 00:15:06]} 10. O-O {[%emt 00:00:02] [%clk 00:16:32]}
b6 {[%emt 00:00:02] [%clk 00:15:15]} 11. Nd2 {[%emt 00:00:23] [%clk 00:16:18]}
Bb7 {[%emt 00:00:11] [%clk 00:15:15]} 12. Ne4 {[%emt 00:00:11] [%clk 00:16:17]}
Qc7 {[%emt 00:00:23] [%clk 00:15:02]} 13. Rb1 {[%emt 00:01:45] [%clk 00:14:42]}
Rab8 {[%emt 00:00:11] [%clk 00:15:02]} 14. Nxc5 {[%emt 00:02:58] [%clk
00:11:53]} bxc5 {[%emt 00:00:02] [%clk 00:15:10]} 15. Ba3 {[%emt 00:00:01] [%clk
00:12:02]} Nd8 {[%emt 00:00:06] [%clk 00:15:13]} 16. Bxb7 {[%emt 00:00:28] [%clk
00:11:44]} Rxb7 {[%emt 00:00:13] [%clk 00:15:10]} 17. Rxb7 {[%emt 00:00:02]
[%clk 00:11:52]} Nxb7 {[%emt 00:00:01] [%clk 00:15:18]} 18. Qd2 {[%emt 00:00:01]
[%clk 00:12:01]} Nd8 {[%emt 00:00:14] [%clk 00:15:14]} 19. Rb1 {[%emt 00:00:03]
[%clk 00:12:08]} Ne6 {[%emt 00:00:03] [%clk 00:15:22]} 20. Rb3 {[%emt 00:01:10]
[%clk 00:11:08]} f5 {[%emt 00:00:19] [%clk 00:15:14]} 21. e3 {[%emt 00:02:27]
[%clk 00:08:50]} Ng5 {[%emt 00:00:52] [%clk 00:14:32]} 22. Ne1 {[%emt 00:00:39]
[%clk 00:08:21]} f4 {[%emt 00:00:30] [%clk 00:14:12]} 23. e4 {[%emt 00:01:15]
[%clk 00:07:16]} fxg3 {[%emt 00:00:14] [%clk 00:14:08]} 24. fxg3 {[%emt
00:00:09] [%clk 00:07:16]} Nh3+ {[%emt 00:00:06] [%clk 00:14:13]} 25. Kg2 {[%emt
00:00:01] [%clk 00:07:26]} Rf2+ {[%emt 00:00:12] [%clk 00:14:10]} 26. Qxf2
{[%emt 00:00:01] [%clk 00:07:34]} Nxf2 {[%emt 00:00:02] [%clk 00:14:18]} 27.
Kxf2 {[%clk 00:07:43]} a6 {[%emt 00:00:10] [%clk 00:14:19]} 28. Nf3 {[%emt
00:00:18] [%clk 00:07:35]} Ng6 {[%emt 00:00:03] [%clk 00:14:27]} 29. h4 {[%emt
00:00:22] [%clk 00:07:23]} Nf8 {[%emt 00:00:07] [%clk 00:14:30]} 30. Bc1 {[%emt
00:00:24] [%clk 00:07:10]} Nd7 {[%emt 00:00:06] [%clk 00:14:33]} 31. Bd2 {[%emt
00:00:41] [%clk 00:06:40]} Nf6 {[%emt 00:00:03] [%clk 00:14:40]} 32. a4 {[%emt
00:00:02] [%clk 00:06:48]} Ng4+ {[%emt 00:00:42] [%clk 00:14:08]} 33. Ke2 {[%emt
00:00:01] [%clk 00:06:57]} h6 {[%emt 00:00:17] [%clk 00:14:00]} 34. a5 {[%emt
00:00:02] [%clk 00:07:05]} Qf7 {[%emt 00:00:54] [%clk 00:13:16]} 35. Rb8+ {[%emt
00:02:02] [%clk 00:05:13]} Kh7 {[%emt 00:00:01] [%clk 00:13:25]} 36. Rc8 {[%emt
00:00:37] [%clk 00:04:46]} Qh5 {[%emt 00:00:24] [%clk 00:13:10]} 37. Rf8 {[%emt
00:00:02] [%clk 00:04:54]} Nf6 {[%emt 00:00:08] [%clk 00:13:12]} 38. Be1 {[%emt
00:01:28] [%clk 00:03:36]} Qg4 {[%emt 00:00:19] [%clk 00:13:02]} 39. Kf2 {[%emt
00:01:30] [%clk 00:02:17]} Nh5 {[%emt 00:00:36] [%clk 00:12:37]} 40. Ke2 {[%emt
00:00:48] [%clk 00:01:39]} Nxg3+ {[%emt 00:00:11] [%clk 00:12:36]} 41. Bxg3
{[%emt 00:00:02] [%clk 00:01:47]} Qxg3 {[%emt 00:00:01] [%clk 00:12:45]} 42. h5
{[%emt 00:01:38] [%clk 00:00:12]} 0-1

[Site "Europe Echecs"]

[Event "Championnat d'Europe Rapide"]
[Date "2024.12.08"]
[White "Maier, Christian"]
[Black "Larkin, Vladyslav"]
[WhiteElo "2235"]
[BlackElo "2449"]
[Round "9.41"]
[Result "1-0"]
[TimeControl "900+10"]

1. e4 {[%emt 00:01:07] [%clk 00:14:13]} c5 {[%emt 00:00:02] [%clk 00:15:18]} 2.
Nf3 {[%emt 00:00:08] [%clk 00:14:15]} e6 {[%emt 00:00:01] [%clk 00:15:27]} 3. b4
{[%emt 00:00:06] [%clk 00:14:20]} cxb4 {[%emt 00:00:15] [%clk 00:15:21]} 4. d4
{[%emt 00:00:01] [%clk 00:14:29]} Nf6 {[%emt 00:00:03] [%clk 00:15:28]} 5. Bd3
{[%emt 00:00:02] [%clk 00:14:37]} Nc6 {[%emt 00:00:54] [%clk 00:14:44]} 6. O-O
{[%emt 00:00:02] [%clk 00:14:45]} Be7 {[%emt 00:00:14] [%clk 00:14:40]} 7. c4
{[%emt 00:00:07] [%clk 00:14:48]} bxc3 {[%emt 00:00:11] [%clk 00:14:39]} 8. Nxc3
{[%emt 00:00:01] [%clk 00:14:56]} d5 {[%emt 00:00:03] [%clk 00:14:47]} 9. e5
{[%emt 00:00:05] [%clk 00:15:01]} Nd7 {[%emt 00:00:04] [%clk 00:14:53]} 10. Qd2
{[%emt 00:00:19] [%clk 00:14:52]} b6 {[%emt 00:00:24] [%clk 00:14:39]} 11. Qf4
{[%emt 00:00:25] [%clk 00:14:36]} Nb4 {[%emt 00:00:12] [%clk 00:14:38]} 12. Bb1
{[%emt 00:00:20] [%clk 00:14:26]} Ba6 {[%emt 00:00:02] [%clk 00:14:46]} 13. Rd1
{[%emt 00:00:02] [%clk 00:14:35]} Rc8 {[%emt 00:00:05] [%clk 00:14:51]} 14. Bb2
{[%emt 00:00:04] [%clk 00:14:40]} g5 {[%emt 00:00:15] [%clk 00:14:46]} 15. Qd2
{[%emt 00:00:12] [%clk 00:14:37]} g4 {[%emt 00:00:20] [%clk 00:14:37]} 16. a3
{[%emt 00:00:20] [%clk 00:14:27]} Nc6 {[%emt 00:00:39] [%clk 00:14:08]} 17. Ne1
{[%emt 00:00:11] [%clk 00:14:26]} Bg5 {[%emt 00:00:13] [%clk 00:14:05]} 18. Qc2
{[%emt 00:00:03] [%clk 00:14:33]} Na5 {[%emt 00:00:13] [%clk 00:14:02]} 19. Ba2
{[%emt 00:02:17] [%clk 00:12:26]} Bc4 {[%emt 00:04:23] [%clk 00:09:49]} 20. Bxc4
{[%emt 00:01:44] [%clk 00:10:52]} Rxc4 {[%emt 00:00:02] [%clk 00:09:57]} 21.
Rab1 {[%emt 00:01:03] [%clk 00:09:59]} Qc7 {[%emt 00:00:47] [%clk 00:09:20]} 22.
Qd3 {[%emt 00:00:21] [%clk 00:09:48]} a6 {[%emt 00:00:01] [%clk 00:09:29]} 23.
Nc2 {[%emt 00:00:37] [%clk 00:09:21]} Nc6 {[%emt 00:02:41] [%clk 00:06:59]} 24.
Qg3 {[%emt 00:00:45] [%clk 00:08:45]} h5 {[%emt 00:00:13] [%clk 00:06:55]} 25.
f4 {[%emt 00:01:53] [%clk 00:07:03]} Bh6 {[%emt 00:00:03] [%clk 00:07:02]} 26.
Qf2 {[%emt 00:00:12] [%clk 00:07:00]} Ne7 {[%emt 00:00:09] [%clk 00:07:03]} 27.
Qd2 {[%emt 00:00:42] [%clk 00:06:29]} h4 {[%emt 00:00:34] [%clk 00:06:39]} 28.
Rbc1 {[%emt 00:00:10] [%clk 00:06:29]} g3 {[%emt 00:00:14] [%clk 00:06:35]} 29.
h3 {[%emt 00:00:07] [%clk 00:06:31]} Nf8 {[%emt 00:00:39] [%clk 00:06:07]} 30.
Ne2 {[%emt 00:00:06] [%clk 00:06:36]} Nfg6 {[%emt 00:00:15] [%clk 00:06:02]} 31.
Ne3 {[%emt 00:00:22] [%clk 00:06:24]} Nxf4 {[%emt 00:03:59] [%clk 00:02:12]} 32.
Nxc4 {[%emt 00:00:36] [%clk 00:05:57]} Nxh3+ {[%emt 00:01:07] [%clk 00:01:16]}
33. gxh3 {[%emt 00:00:01] [%clk 00:06:06]} dxc4 {[%emt 00:00:01] [%clk
00:01:25]} 34. Qc3 {[%emt 00:00:30] [%clk 00:05:45]} Qb7 {[%emt 00:00:52] [%clk
00:00:43]} 35. Rf1 {[%emt 00:00:14] [%clk 00:05:40]} Bxc1 {[%emt 00:00:35] [%clk
00:00:18]} 36. Bxc1 {[%emt 00:00:03] [%clk 00:05:47]} b5 {[%emt 00:00:06] [%clk
00:00:22]} 37. Bg5 {[%emt 00:00:36] [%clk 00:05:20]} Nf5 {[%clk 00:00:32]} 38.
Rf4 {[%emt 00:01:33] [%clk 00:03:57]} Qd5 {[%emt 00:00:16] [%clk 00:00:26]} 39.
Qd2 {[%emt 00:00:10] [%clk 00:03:57]} Rg8 {[%emt 00:00:10] [%clk 00:00:26]} 40.
Nc3 {[%emt 00:00:08] [%clk 00:03:59]} Qb7 {[%emt 00:00:07] [%clk 00:00:29]} 41.
Bxh4 {[%emt 00:00:06] [%clk 00:04:03]} Rh8 {[%clk 00:00:39]} 42. Ne4 {[%emt
00:00:25] [%clk 00:03:47]} Rxh4 {[%emt 00:00:33] [%clk 00:00:16]} 43. Rxh4
{[%emt 00:00:24] [%clk 00:03:34]} Nxh4 {[%clk 00:00:26]} 44. Qf4 {[%emt
00:00:01] [%clk 00:03:42]} Ng6 {[%emt 00:00:21] [%clk 00:00:15]} 45. Nd6+ {[%emt
00:00:01] [%clk 00:03:50]} Kf8 {[%emt 00:00:05] [%clk 00:00:20]} 46. Qh6+ {[%emt
00:00:01] [%clk 00:03:59]} Kg8 {[%emt 00:00:15] [%clk 00:00:15]} 47. Nxb7 {[%emt
00:00:03] [%clk 00:04:06]} c3 {[%clk 00:00:25]} 48. Kg2 {[%emt 00:00:21] [%clk
00:03:55]} Ne7 {[%emt 00:00:04] [%clk 00:00:31]} 49. Nd6 {[%emt 00:00:15] [%clk
00:03:50]} c2 {[%emt 00:00:02] [%clk 00:00:39]} 50. Ne4 {[%emt 00:00:09] [%clk
00:03:50]} Nd5 {[%emt 00:00:01] [%clk 00:00:48]} 51. Nf6+ {[%emt 00:00:09] [%clk
00:03:51]} 1-0

[Site "Europe Echecs"]

[Event "Championnat d'Europe Rapide"]
[Date "2024.12.08"]
[White "Dinev, Dejan"]
[Black "Alienkin, Aleksander"]
[WhiteElo "2209"]
[BlackElo "2337"]
[Round "9.42"]
[Result "1/2-1/2"]
[TimeControl "900+10"]

1. e4 {[%emt 00:00:31] [%clk 00:14:48]} e6 {[%emt 00:00:04] [%clk 00:15:17]} 2.
d4 {[%emt 00:00:04] [%clk 00:14:54]} d5 {[%emt 00:00:03] [%clk 00:15:24]} 3.
exd5 {[%emt 00:00:03] [%clk 00:15:01]} exd5 {[%emt 00:00:03] [%clk 00:15:31]} 4.
Bd3 {[%emt 00:00:02] [%clk 00:15:09]} Nc6 {[%emt 00:00:08] [%clk 00:15:33]} 5.
c3 {[%emt 00:00:06] [%clk 00:15:13]} Bd6 {[%emt 00:00:04] [%clk 00:15:39]} 6. h3
{[%emt 00:00:03] [%clk 00:15:20]} Nge7 {[%emt 00:00:49] [%clk 00:14:59]} 7. Qf3
{[%emt 00:00:13] [%clk 00:15:17]} Be6 {[%emt 00:00:41] [%clk 00:14:27]} 8. Ne2
{[%emt 00:00:03] [%clk 00:15:24]} Qd7 {[%emt 00:00:53] [%clk 00:13:44]} 9. Bf4
{[%emt 00:00:18] [%clk 00:15:16]} O-O {[%emt 00:00:28] [%clk 00:13:25]} 10. Nd2
{[%emt 00:00:34] [%clk 00:14:54]} Bxf4 {[%emt 00:01:33] [%clk 00:12:01]} 11.
Nxf4 {[%emt 00:00:12] [%clk 00:14:53]} Bf5 {[%emt 00:00:36] [%clk 00:11:35]} 12.
g4 {[%emt 00:00:08] [%clk 00:14:55]} Bxd3 {[%emt 00:00:09] [%clk 00:11:36]} 13.
Nxd3 {[%emt 00:00:03] [%clk 00:15:02]} Qe6+ {[%emt 00:00:51] [%clk 00:10:56]}
14. Kf1 {[%emt 00:00:03] [%clk 00:15:09]} Qh6 {[%emt 00:00:35] [%clk 00:10:31]}
15. Qf4 {[%emt 00:01:34] [%clk 00:13:46]} Qg6 {[%emt 00:00:42] [%clk 00:09:58]}
16. Ne1 {[%emt 00:01:07] [%clk 00:12:50]} f5 {[%emt 00:02:49] [%clk 00:07:18]}
17. g5 {[%emt 00:00:05] [%clk 00:12:55]} Rac8 {[%emt 00:00:44] [%clk 00:06:44]}
18. h4 {[%emt 00:00:06] [%clk 00:13:00]} Qh5 {[%emt 00:00:29] [%clk 00:06:25]}
19. Ng2 {[%emt 00:00:28] [%clk 00:12:41]} Ng6 {[%emt 00:01:12] [%clk 00:05:22]}
20. Qf3 {[%emt 00:00:02] [%clk 00:12:50]} Qxf3 {[%emt 00:00:03] [%clk 00:05:28]}
21. Nxf3 {[%emt 00:00:01] [%clk 00:12:59]} f4 {[%emt 00:01:10] [%clk 00:04:28]}
22. h5 {[%emt 00:00:04] [%clk 00:13:06]} Nge7 {[%clk 00:04:37]} 23. Rh4 {[%emt
00:00:05] [%clk 00:13:12]} Rf5 {[%emt 00:00:13] [%clk 00:04:33]} 24. Re1 {[%emt
00:01:08] [%clk 00:12:14]} Rcf8 {[%emt 00:00:05] [%clk 00:04:38]} 25. Re6 {[%emt
00:00:13] [%clk 00:12:11]} Kf7 {[%emt 00:00:18] [%clk 00:04:29]} 26. Re2 {[%emt
00:00:14] [%clk 00:12:07]} Ke8 {[%emt 00:00:03] [%clk 00:04:37]} 27. Nge1 {[%emt
00:00:23] [%clk 00:11:55]} Kd8 {[%emt 00:00:15] [%clk 00:04:31]} 28. Nd3 {[%emt
00:00:01] [%clk 00:12:04]} b6 {[%emt 00:00:03] [%clk 00:04:39]} 29. b4 {[%emt
00:00:38] [%clk 00:11:35]} Nc8 {[%emt 00:00:15] [%clk 00:04:33]} 30. g6 {[%emt
00:01:37] [%clk 00:10:09]} hxg6 {[%emt 00:00:24] [%clk 00:04:19]} 31. hxg6
{[%emt 00:00:01] [%clk 00:10:18]} N6e7 {[%emt 00:00:21] [%clk 00:04:08]} 32.
Nde5 {[%emt 00:00:27] [%clk 00:10:01]} Nd6 {[%emt 00:00:26]} 33. Rh7 {[%emt
00:00:02] [%clk 00:10:02]} Rg8 {[%emt 00:00:16] [%clk 00:03:54]} 34. a4 {[%emt
00:02:28] [%clk 00:07:44]} Ne4 {[%emt 00:00:35] [%clk 00:03:29]} 35. c4 {[%emt
00:00:24] [%clk 00:07:30]} Nf6 {[%emt 00:00:06] [%clk 00:03:32]} 36. Nf7+ {[%emt
00:00:33] [%clk 00:07:08]} Ke8 {[%emt 00:00:08] [%clk 00:03:34]} 37. Nh6 {[%emt
00:00:15] [%clk 00:07:02]} gxh6 {[%emt 00:00:38] [%clk 00:03:06]} 38. Rexe7+
{[%emt 00:00:39] [%clk 00:06:33]} Kd8 {[%clk 00:03:16]} 39. Ref7 {[%emt
00:01:47] [%clk 00:04:57]} dxc4 {[%emt 00:00:31] [%clk 00:02:55]} 40. Ne5 {[%emt
00:00:11] [%clk 00:04:56]} Rxe5 {[%emt 00:00:24] [%clk 00:02:41]} 41. dxe5
{[%emt 00:00:17] [%clk 00:04:49]} Nxh7 {[%emt 00:00:02] [%clk 00:02:50]} 42.
gxh7 {[%emt 00:00:02] [%clk 00:04:56]} Re8 {[%emt 00:01:22] [%clk 00:01:37]} 43.
Rg7 {[%emt 00:00:02] [%clk 00:05:04]} c3 {[%emt 00:00:05] [%clk 00:01:42]} 44.
Rg8 {[%emt 00:00:11] [%clk 00:05:03]} c2 {[%emt 00:00:02] [%clk 00:01:50]} 45.
Rxe8+ {[%emt 00:00:02] [%clk 00:05:11]} Kd7 {[%emt 00:00:01] [%clk 00:02:00]}
46. h8=Q {[%emt 00:01:33] [%clk 00:03:48]} c1=Q+ {[%emt 00:00:04] [%clk
00:02:07]} 47. Kg2 {[%emt 00:00:25] [%clk 00:03:32]} f3+ {[%emt 00:00:09] [%clk
00:02:08]} 48. Kxf3 {[%emt 00:00:48] [%clk 00:02:54]} Qd1+ {[%emt 00:00:07]
[%clk 00:02:11]} 49. Ke3 {[%emt 00:00:32] [%clk 00:02:32]} Qe1+ {[%emt 00:00:10]
[%clk 00:02:11]} 50. Kd3 {[%emt 00:00:45] [%clk 00:01:57]} Qd1+ {[%emt 00:00:08]
[%clk 00:02:13]} 51. Ke4 {[%emt 00:01:01] [%clk 00:01:06]} Qe2+ {[%emt 00:00:11]
[%clk 00:02:12]} 52. Kf5 {[%emt 00:00:49] [%clk 00:00:28]} Qxf2+ {[%emt
00:00:13] [%clk 00:02:08]} 53. Kg6 {[%emt 00:00:11] [%clk 00:00:27]} Qg3+ {[%emt
00:00:17] [%clk 00:02:01]} 54. Kf7 {[%emt 00:00:10] [%clk 00:00:28]} Qf3 {[%emt
00:00:11] [%clk 00:01:59]} 55. Kg7 {[%emt 00:00:22] [%clk 00:00:17]} Qg4 {[%emt
00:00:08] [%clk 00:02:01]} 56. Kh7 {[%emt 00:00:12] [%clk 00:00:15]} Qf5 {[%emt
00:00:11] [%clk 00:02:00]} 57. Kxh6 {[%emt 00:00:04] [%clk 00:00:21]} Qf4+
{[%emt 00:00:07] [%clk 00:02:03]} 58. Kg6 {[%emt 00:00:02] [%clk 00:00:29]} Qg4+
{[%emt 00:00:04] [%clk 00:02:09]} 59. Kh6 {[%emt 00:00:18] [%clk 00:00:21]} Qf4+
{[%emt 00:00:07] [%clk 00:02:11]} 60. Kg6 {[%emt 00:00:12] [%clk 00:00:20]} Qg4+
{[%emt 00:00:01] [%clk 00:02:20]} 61. Kh6 {[%emt 00:00:11] [%clk 00:00:19]} Qf4+
{[%emt 00:00:02] [%clk 00:02:28]} 62. Kh5 {[%emt 00:00:07] [%clk 00:00:22]} Qf5+
{[%emt 00:00:05] [%clk 00:02:33]} 63. Kh6 {[%emt 00:00:07] [%clk 00:00:26]} Qf4+
{[%emt 00:00:01] [%clk 00:02:42]} 64. Kg6 {[%emt 00:00:14] [%clk 00:00:22]} Qg4+
{[%emt 00:00:03] [%clk 00:02:49]} 65. Kf6 {[%emt 00:00:15] [%clk 00:00:16]} Qf4+
{[%emt 00:00:04] [%clk 00:02:55]} 66. Kg6 {[%emt 00:00:07] [%clk 00:00:20]} Qg4+
{[%emt 00:00:01] [%clk 00:03:04]} 67. Kf6 {[%emt 00:00:12] [%clk 00:00:05]}
1/2-1/2

[Site "Europe Echecs"]

[Event "Championnat d'Europe Rapide"]
[Date "2024.12.08"]
[White "Ghimpu, Samuel-Timotei"]
[Black "Dragicevic, Drazen"]
[WhiteElo "2475"]
[BlackElo "2332"]
[Round "9.43"]
[Result "1-0"]
[TimeControl "900+10"]

1. d4 {[%emt 00:03:20] [%clk 00:11:59]} d5 {[%emt 00:00:30] [%clk 00:14:50]} 2.
Nf3 {[%emt 00:00:03] [%clk 00:12:06]} Nf6 {[%emt 00:00:05] [%clk 00:14:56]} 3.
Bf4 {[%clk 00:12:14]} e6 {[%emt 00:00:14] [%clk 00:14:53]} 4. Nbd2 {[%emt
00:00:02] [%clk 00:12:22]} c5 {[%emt 00:00:24] [%clk 00:14:39]} 5. e3 {[%emt
00:00:05] [%clk 00:12:26]} Nc6 {[%emt 00:00:12] [%clk 00:14:36]} 6. c3 {[%emt
00:00:30] [%clk 00:12:08]} b6 {[%emt 00:00:32] [%clk 00:14:14]} 7. Bb5 {[%emt
00:00:18] [%clk 00:11:59]} Bd7 {[%emt 00:00:06] [%clk 00:14:18]} 8. O-O {[%emt
00:00:16] [%clk 00:11:53]} a6 {[%emt 00:00:43] [%clk 00:13:46]} 9. Bd3 {[%emt
00:00:33] [%clk 00:11:30]} Be7 {[%emt 00:00:11] [%clk 00:13:44]} 10. h3 {[%emt
00:00:46] [%clk 00:10:55]} O-O {[%emt 00:01:00] [%clk 00:12:53]} 11. Qe2 {[%emt
00:00:03] [%clk 00:11:02]} b5 {[%emt 00:03:05] [%clk 00:09:59]} 12. dxc5 {[%emt
00:00:20] [%clk 00:10:52]} Bxc5 {[%emt 00:00:14] [%clk 00:09:54]} 13. e4 {[%emt
00:00:03] [%clk 00:10:59]} dxe4 {[%emt 00:03:03] [%clk 00:07:02]} 14. Nxe4
{[%emt 00:00:52] [%clk 00:10:16]} Nxe4 {[%emt 00:01:50] [%clk 00:05:23]} 15.
Bxe4 {[%clk 00:10:25]} Qe7 {[%emt 00:03:28] [%clk 00:02:04]} 16. Rad1 {[%emt
00:00:53] [%clk 00:09:43]} Rfd8 {[%emt 00:08:09]} 17. b4 {[%clk 00:02:20]} Bb6
{[%emt 00:00:03] [%clk 00:01:45]} 18. Bd6 {[%emt 00:00:36] [%clk 00:01:54]} Qf6
{[%emt 00:00:12] [%clk 00:01:42]} 19. Ne5 {[%emt 00:00:27] [%clk 00:01:37]} Rac8
{[%emt 00:01:01] [%clk 00:00:52]} 20. Rd3 {[%emt 00:00:24] [%clk 00:01:24]} Nxe5
{[%emt 00:00:44] [%clk 00:00:17]} 21. Bxe5 {[%emt 00:00:03] [%clk 00:01:31]} Qh4
{[%emt 00:00:13] [%clk 00:00:14]} 22. Rg3 {[%emt 00:00:53] [%clk 00:00:48]} g6
{[%emt 00:00:08] [%clk 00:00:17]} 23. Qf3 {[%emt 00:00:36] [%clk 00:00:21]} Re8
{[%emt 00:00:13] [%clk 00:00:14]} 24. Bf6 {[%emt 00:00:10] [%clk 00:00:21]} Qh6
{[%emt 00:00:02] [%clk 00:00:21]} 25. Rd1 {[%emt 00:00:08] [%clk 00:00:23]} Rc7
{[%emt 00:00:16] [%clk 00:00:16]} 26. Be5 {[%clk 00:00:32]} f5 {[%emt 00:00:16]
[%clk 00:00:11]} 27. Bxc7 {[%emt 00:00:16] [%clk 00:00:25]} Bxc7 {[%clk
00:00:20]} 28. Bc6 {[%emt 00:00:10] [%clk 00:00:26]} Bxg3 {[%emt 00:00:11] [%clk
00:00:18]} 29. Bxd7 {[%emt 00:00:03] [%clk 00:00:34]} Bxf2+ {[%emt 00:00:14]
[%clk 00:00:14]} 30. Qxf2 {[%emt 00:00:08] [%clk 00:00:36]} Re7 {[%emt 00:00:02]
[%clk 00:00:22]} 31. Qc5 {[%emt 00:00:17] [%clk 00:00:29]} Qg7 {[%emt 00:00:13]
[%clk 00:00:18]} 32. Qd6 {[%emt 00:00:18] [%clk 00:00:22]} Kf7 {[%emt 00:00:12]
[%clk 00:00:16]} 33. Re1 {[%emt 00:00:11] [%clk 00:00:20]} Qxc3 {[%emt 00:00:10]
[%clk 00:00:17]} 34. Bxe6+ {[%emt 00:00:05] [%clk 00:00:25]} Kf8 {[%emt
00:00:02] [%clk 00:00:25]} 35. Re2 {[%emt 00:00:19] [%clk 00:00:17]} Qa1+ {[%emt
00:00:21] [%clk 00:00:14]} 36. Kh2 {[%emt 00:00:01] [%clk 00:00:25]} Qf6 {[%emt
00:00:03] [%clk 00:00:21]} 37. Qxa6 {[%emt 00:00:20] [%clk 00:00:14]} f4 {[%emt
00:00:06] [%clk 00:00:26]} 38. Qc8+ {[%emt 00:00:10] [%clk 00:00:14]} Kg7 {[%emt
00:00:16] [%clk 00:00:20]} 39. Bg4 {[%emt 00:00:06] [%clk 00:00:17]} Rxe2 {[%emt
00:00:18] [%clk 00:00:12]} 40. Bxe2 {[%emt 00:00:01] [%clk 00:00:26]} Qe5 {[%emt
00:00:09] [%clk 00:00:14]} 41. Qd7+ {[%emt 00:00:17] [%clk 00:00:19]} Kh6 {[%emt
00:00:04] [%clk 00:00:19]} 42. Qxb5 {[%emt 00:00:03] [%clk 00:00:27]} Qe3 {[%emt
00:00:06] [%clk 00:00:22]} 43. Bf3 {[%emt 00:00:03] [%clk 00:00:34]} Qe1 {[%emt
00:00:12] [%clk 00:00:20]} 44. Qe2 {[%emt 00:00:20] [%clk 00:00:24]} Qxb4 {[%emt
00:00:03] [%clk 00:00:28]} 45. Qe4 {[%clk 00:00:33]} Qd2 {[%emt 00:00:12] [%clk
00:00:27]} 46. a4 {[%emt 00:00:02] [%clk 00:00:41]} g5 {[%emt 00:00:16] [%clk
00:00:20]} 47. Qe5 {[%emt 00:00:14] [%clk 00:00:38]} Kg6 {[%emt 00:00:10] [%clk
00:00:19]} 48. Be4+ {[%emt 00:00:12] [%clk 00:00:36]} Kh5 {[%emt 00:00:03] [%clk
00:00:27]} 49. Qe8+ {[%emt 00:00:16] [%clk 00:00:30]} Kh6 {[%emt 00:00:19] [%clk
00:00:17]} 50. Qf8+ {[%emt 00:00:08] [%clk 00:00:31]} 1-0

[Site "Europe Echecs"]